[Event "Titled Tuesday Blitz April 18 Late 2023"]
[White "Sargsyan, Shant"]
[Black "Jovic, Stanoje"]
[WhiteFideId "13306766"]
[BlackFideId "905020"]
[WhiteElo "2628"]
[BlackElo "2236"]
[Result "1-0"]
[Round "05"]
[TimeControl "180+2"]
[Date "2023.04.18"]
[WhiteClock "0:02:20"]
[BlackClock "0:00:11"]

1. c3 {[%clk 0:02:59]}  c5 {[%clk 0:02:57]} 2. Nf3 {[%clk 0:02:58]}  d5 {[%clk 0:02:57]} 3. d4 {[%clk 0:02:58]}  Nc6 {[%clk 0:02:51]} 4. Bf4 {[%clk 0:02:58]}  Bg4 {[%clk 0:02:49]} 5. e3 {[%clk 0:02:57]}  e6 {[%clk 0:02:48]} 6. Qb3 {[%clk 0:02:58]}  Qb6 {[%clk 0:02:43]} 7. Nbd2 {[%clk 0:02:57]}  c4 {[%clk 0:02:40]} 8. Qc2 {[%clk 0:02:54]}  Bf5 {[%clk 0:02:35]} 9. Qc1 {[%clk 0:02:53]}  Nf6 {[%clk 0:02:32]} 10. b3 {[%clk 0:02:53]}  cxb3 {[%clk 0:02:23]} 11. axb3 {[%clk 0:02:54]}  Be7 {[%clk 0:02:21]} 12. Be2 {[%clk 0:02:54]}  O-O {[%clk 0:02:20]} 13. O-O {[%clk 0:02:54]}  Rfc8 {[%clk 0:02:20]} 14. Qb2 {[%clk 0:02:54]}  a5 {[%clk 0:02:18]} 15. h3 {[%clk 0:02:54]}  Ne4 {[%clk 0:02:11]} 16. Nxe4 {[%clk 0:02:53]}  Bxe4 {[%clk 0:02:10]} 17. Nd2 {[%clk 0:02:54]}  Bg6 {[%clk 0:02:08]} 18. Rfc1 {[%clk 0:02:49]}  Bf6 {[%clk 0:02:04]} 19. Bg3 {[%clk 0:02:46]}  e5 {[%clk 0:01:57]} 20. Nf3 {[%clk 0:02:42]}  exd4 {[%clk 0:01:50]} 21. cxd4 {[%clk 0:02:40]}  Nb4 {[%clk 0:01:45]} 22. Rxc8+ {[%clk 0:02:40]}  Rxc8 {[%clk 0:01:45]} 23. Rc1 {[%clk 0:02:41]}  Rxc1+ {[%clk 0:01:40]} 24. Qxc1 {[%clk 0:02:42]}  Qc6 {[%clk 0:01:36]} 25. Qxc6 {[%clk 0:02:41]}  bxc6 {[%clk 0:01:36]} 26. Bc7 {[%clk 0:02:42]}  Bc2 {[%clk 0:01:19]} 27. Bxa5 {[%clk 0:02:39]}  Be7 {[%clk 0:01:17]} 28. Ne5 {[%clk 0:02:39]}  f6 {[%clk 0:01:12]} 29. Bxb4 {[%clk 0:02:38]}  Bxb4 {[%clk 0:01:03]} 30. Nxc6 {[%clk 0:02:39]}  Bd6 {[%clk 0:00:43]} 31. b4 {[%clk 0:02:37]}  Kf7 {[%clk 0:00:40]} 32. b5 {[%clk 0:02:36]}  Bc7 {[%clk 0:00:34]} 33. Bf3 {[%clk 0:02:32]}  Bb3 {[%clk 0:00:27]} 34. Nb4 {[%clk 0:02:29]}  Ke6 {[%clk 0:00:25]} 35. Nd3 {[%clk 0:02:30]}  Kd6 {[%clk 0:00:20]} 36. Be2 {[%clk 0:02:18]}  Ba5 {[%clk 0:00:17]} 37. Nc5 {[%clk 0:02:18]}  Bc4 {[%clk 0:00:14]} 38. Bxc4 {[%clk 0:02:17]}  dxc4 {[%clk 0:00:14]} 39. Nb7+ {[%clk 0:02:18]}  Kd5 {[%clk 0:00:10]} 40. Nxa5 {[%clk 0:02:19]}  c3 {[%clk 0:00:11]} 41. Kf1 {[%clk 0:02:18]}  c2 {[%clk 0:00:11]} 42. Nb3 {[%clk 0:02:19]}  Kc4 {[%clk 0:00:11]} 43. Nc1 {[%clk 0:02:20]} 1-0


[Site "https://www.chess.com"]

[Event "Titled Tuesday Blitz April 18 Late 2023"]
[White "QuiesPrecatio"]
[Black "Goltsev, Dmitry"]
[BlackFideId "24176710"]
[WhiteElo "2456"]
[BlackElo "2336"]
[Result "0-1"]
[Round "05"]
[TimeControl "180+2"]
[Date "2023.04.18"]
[WhiteClock "0:00:02"]
[BlackClock "0:00:04"]

1. Nf3 {[%clk 0:02:59]}  d5 {[%clk 0:02:58]} 2. g3 {[%clk 0:02:58]}  c6 {[%clk 0:02:58]} 3. Bg2 {[%clk 0:02:59]}  g6 {[%clk 0:02:59]} 4. O-O {[%clk 0:02:59]}  Bg7 {[%clk 0:03:00]} 5. d3 {[%clk 0:03:00]}  Nf6 {[%clk 0:03:00]} 6. Nbd2 {[%clk 0:03:00]}  O-O {[%clk 0:03:01]} 7. e4 {[%clk 0:03:01]}  dxe4 {[%clk 0:03:02]} 8. dxe4 {[%clk 0:02:59]}  Nbd7 {[%clk 0:03:02]} 9. c3 {[%clk 0:02:56]}  Nc5 {[%clk 0:03:02]} 10. Qc2 {[%clk 0:02:54]}  Qd3 {[%clk 0:03:02]} 11. Qxd3 {[%clk 0:02:52]}  Nxd3 {[%clk 0:03:03]} 12. Nd4 {[%clk 0:02:47]}  e5 {[%clk 0:02:58]} 13. Nc2 {[%clk 0:02:40]}  Bg4 {[%clk 0:02:56]} 14. f3 {[%clk 0:02:37]}  Be6 {[%clk 0:02:55]} 15. Rd1 {[%clk 0:02:31]}  Bh6 {[%clk 0:02:50]} 16. Nb3 {[%clk 0:02:26]}  Bxb3 {[%clk 0:02:50]} 17. Bxh6 {[%clk 0:02:14]}  Bxc2 {[%clk 0:02:38]} 18. Rd2 {[%clk 0:02:14]}  Rfd8 {[%clk 0:02:27]} 19. Rxc2 {[%clk 0:02:13]}  Nc5 {[%clk 0:02:27]} 20. Be3 {[%clk 0:02:11]}  Ne6 {[%clk 0:02:26]} 21. Bf1 {[%clk 0:02:06]}  Rd6 {[%clk 0:02:20]} 22. Kf2 {[%clk 0:02:00]}  Rad8 {[%clk 0:02:11]} 23. Ke1 {[%clk 0:02:00]}  b6 {[%clk 0:02:02]} 24. Be2 {[%clk 0:01:58]}  Ne8 {[%clk 0:02:00]} 25. Rd1 {[%clk 0:01:57]}  f5 {[%clk 0:02:01]} 26. exf5 {[%clk 0:01:54]}  gxf5 {[%clk 0:02:00]} 27. Rxd6 {[%clk 0:01:53]}  Nxd6 {[%clk 0:01:59]} 28. Rd2 {[%clk 0:01:52]}  Kf7 {[%clk 0:01:58]} 29. Bd3 {[%clk 0:01:34]}  e4 {[%clk 0:01:51]} 30. fxe4 {[%clk 0:01:30]}  Nxe4 {[%clk 0:01:36]} 31. Rd1 {[%clk 0:01:19]}  Kf6 {[%clk 0:01:20]} 32. g4 {[%clk 0:00:45]}  Rd5 {[%clk 0:00:44]} 33. gxf5 {[%clk 0:00:34]}  Kxf5 {[%clk 0:00:45]} 34. Bc4 {[%clk 0:00:21]}  Rxd1+ {[%clk 0:00:39]} 35. Kxd1 {[%clk 0:00:21]}  Nf4 {[%clk 0:00:37]} 36. Bg8 {[%clk 0:00:19]}  Nf6 {[%clk 0:00:30]} 37. Bb3 {[%clk 0:00:19]}  h5 {[%clk 0:00:25]} 38. Bc2+ {[%clk 0:00:19]}  Kg4 {[%clk 0:00:21]} 39. a4 {[%clk 0:00:11]}  Kf3 {[%clk 0:00:20]} 40. Bd4 {[%clk 0:00:11]}  Ng4 {[%clk 0:00:19]} 41. h4 {[%clk 0:00:10]}  Ne3+ {[%clk 0:00:15]} 42. Bxe3 {[%clk 0:00:08]}  Kxe3 {[%clk 0:00:16]} 43. b4 {[%clk 0:00:07]}  Kf3 {[%clk 0:00:16]} 44. c4 {[%clk 0:00:03]}  c5 {[%clk 0:00:14]} 45. a5 {[%clk 0:00:02]}  cxb4 {[%clk 0:00:12]} 46. axb6 {[%clk 0:00:01]}  axb6 {[%clk 0:00:13]} 47. Kc1 {[%clk 0:00:01]}  Kg4 {[%clk 0:00:08]} 48. Kb2 {[%clk 0:00:02]}  Kxh4 {[%clk 0:00:08]} 49. Kb3 {[%clk 0:00:02]}  Kg3 {[%clk 0:00:05]} 50. Kxb4 {[%clk 0:00:02]}  h4 {[%clk 0:00:05]} 51. Bf5 {[%clk 0:00:03]}  Ng2 {[%clk 0:00:03]} 52. Kb5 {[%clk 0:00:02]}  Ne3 {[%clk 0:00:03]} 53. Be6 {[%clk 0:00:01]}  Kf4 {[%clk 0:00:04]} 54. Kxb6 {[%clk 0:00:01]}  Ke5 {[%clk 0:00:05]} 55. Bd5 {[%clk 0:00:01]}  Nxd5+ {[%clk 0:00:03]} 56. cxd5 {[%clk 0:00:02]}  Kxd5 {[%clk 0:00:04]} 0-1


[Site "https://www.chess.com"]

[Event "Titled Tuesday Blitz April 18 Late 2023"]
[White "Kovalevsky, Stanislav"]
[Black "Timmermans, Mark"]
[WhiteFideId "13508598"]
[BlackFideId "1026399"]
[WhiteElo "2174"]
[BlackElo "2460"]
[Result "0-1"]
[Round "05"]
[TimeControl "180+2"]
[Date "2023.04.18"]
[WhiteClock "0:00:09"]
[BlackClock "0:00:51"]

1. c4 {[%clk 0:03:00]}  e6 {[%clk 0:02:57]} 2. e4 {[%clk 0:03:00]}  c5 {[%clk 0:02:56]} 3. Nc3 {[%clk 0:02:59]}  b6 {[%clk 0:02:56]} 4. g3 {[%clk 0:03:00]}  Bb7 {[%clk 0:02:56]} 5. Bg2 {[%clk 0:03:00]}  g6 {[%clk 0:02:56]} 6. h4 {[%clk 0:03:00]}  Bg7 {[%clk 0:02:56]} 7. h5 {[%clk 0:03:00]}  h6 {[%clk 0:02:56]} 8. hxg6 {[%clk 0:03:00]}  fxg6 {[%clk 0:02:57]} 9. d3 {[%clk 0:03:00]}  Qf6 {[%clk 0:02:48]} 10. Be3 {[%clk 0:02:58]}  Nc6 {[%clk 0:02:47]} 11. Nb5 {[%clk 0:02:56]}  Ke7 {[%clk 0:02:35]} 12. Rb1 {[%clk 0:02:37]}  a6 {[%clk 0:02:29]} 13. Nc3 {[%clk 0:02:37]}  Kf7 {[%clk 0:02:08]} 14. Na4 {[%clk 0:02:29]}  Qd8 {[%clk 0:02:08]} 15. Nf3 {[%clk 0:02:12]}  Nge7 {[%clk 0:02:00]} 16. Qd2 {[%clk 0:01:56]}  g5 {[%clk 0:01:50]} 17. Bh3 {[%clk 0:01:32]}  d5 {[%clk 0:01:39]} 18. Bxg5 {[%clk 0:01:14]}  dxe4 {[%clk 0:01:36]} 19. dxe4 {[%clk 0:01:14]}  hxg5 {[%clk 0:01:28]} 20. Nxg5+ {[%clk 0:01:14]}  Ke8 {[%clk 0:01:14]} 21. Qxd8+ {[%clk 0:01:01]}  Nxd8 {[%clk 0:01:14]} 22. Nxb6 {[%clk 0:00:56]}  Rb8 {[%clk 0:01:13]} 23. O-O {[%clk 0:00:37]}  Bf6 {[%clk 0:01:10]} 24. Nxe6 {[%clk 0:00:17]}  Rxh3 {[%clk 0:01:10]} 25. Nc7+ {[%clk 0:00:16]}  Kf7 {[%clk 0:01:06]} 26. Rfe1 {[%clk 0:00:16]}  Bxe4 {[%clk 0:01:02]} 27. Rxe4 {[%clk 0:00:15]}  Rxb6 {[%clk 0:01:02]} 28. b3 {[%clk 0:00:16]}  Ne6 {[%clk 0:01:01]} 29. Nd5 {[%clk 0:00:13]}  Nxd5 {[%clk 0:01:00]} 30. cxd5 {[%clk 0:00:14]}  Nd4 {[%clk 0:01:00]} 31. Kg2 {[%clk 0:00:14]}  Rh5 {[%clk 0:01:00]} 32. Rc1 {[%clk 0:00:12]}  Rxd5 {[%clk 0:01:00]} 33. f4 {[%clk 0:00:12]}  a5 {[%clk 0:00:53]} 34. g4 {[%clk 0:00:12]}  a4 {[%clk 0:00:54]} 35. bxa4 {[%clk 0:00:12]}  Rb2+ {[%clk 0:00:53]} 36. Kg3 {[%clk 0:00:12]}  Rxa2 {[%clk 0:00:52]} 37. g5 {[%clk 0:00:13]}  Ne2+ {[%clk 0:00:51]} 38. Kg4 {[%clk 0:00:10]}  Nxc1 {[%clk 0:00:52]} 39. gxf6 {[%clk 0:00:09]}  Kxf6 {[%clk 0:00:51]} 40. Rc4 {[%clk 0:00:09]} 0-1


[Site "https://www.chess.com"]

[Event "Titled Tuesday Blitz April 18 Late 2023"]
[White "reevecanada"]
[Black "Weetik, Vjacheslav"]
[BlackFideId "4153472"]
[WhiteElo "2449"]
[BlackElo "2469"]
[Result "1-0"]
[Round "05"]
[TimeControl "180+2"]
[Date "2023.04.18"]
[WhiteClock "0:00:16"]
[BlackClock "0:00:03"]

1. e4 {[%clk 0:02:48]}  c6 {[%clk 0:02:59]} 2. c4 {[%clk 0:02:48]}  e5 {[%clk 0:02:59]} 3. Nf3 {[%clk 0:02:47]}  d6 {[%clk 0:03:00]} 4. d4 {[%clk 0:02:46]}  Nd7 {[%clk 0:03:00]} 5. Nc3 {[%clk 0:02:45]}  Ngf6 {[%clk 0:03:01]} 6. Be2 {[%clk 0:02:46]}  g6 {[%clk 0:03:01]} 7. O-O {[%clk 0:02:46]}  Bg7 {[%clk 0:03:02]} 8. h3 {[%clk 0:02:46]}  O-O {[%clk 0:03:02]} 9. Be3 {[%clk 0:02:47]}  exd4 {[%clk 0:02:59]} 10. Nxd4 {[%clk 0:02:46]}  Re8 {[%clk 0:02:59]} 11. f3 {[%clk 0:02:44]}  d5 {[%clk 0:02:57]} 12. cxd5 {[%clk 0:02:40]}  cxd5 {[%clk 0:02:41]} 13. Ndb5 {[%clk 0:02:36]}  dxe4 {[%clk 0:02:27]} 14. Nd6 {[%clk 0:02:32]}  Rf8 {[%clk 0:02:03]} 15. Ncxe4 {[%clk 0:02:30]}  Nxe4 {[%clk 0:02:01]} 16. fxe4 {[%clk 0:02:30]}  Ne5 {[%clk 0:01:52]} 17. Rc1 {[%clk 0:02:27]}  Be6 {[%clk 0:01:47]} 18. Nxb7 {[%clk 0:02:26]}  Qxd1 {[%clk 0:01:45]} 19. Rfxd1 {[%clk 0:02:25]}  Bxa2 {[%clk 0:01:46]} 20. Bc5 {[%clk 0:02:22]}  Rfb8 {[%clk 0:01:27]} 21. Ba6 {[%clk 0:02:21]}  Be6 {[%clk 0:01:19]} 22. Bd6 {[%clk 0:02:20]}  Re8 {[%clk 0:01:12]} 23. b4 {[%clk 0:02:16]}  Nd7 {[%clk 0:01:04]} 24. Nc5 {[%clk 0:02:09]}  Bh6 {[%clk 0:00:52]} 25. Rc3 {[%clk 0:02:01]}  Bg7 {[%clk 0:00:45]} 26. Rcc1 {[%clk 0:01:51]}  Bh6 {[%clk 0:00:45]} 27. Rc3 {[%clk 0:01:35]}  Bg7 {[%clk 0:00:44]} 28. Rf3 {[%clk 0:01:23]}  Ne5 {[%clk 0:00:43]} 29. Bxe5 {[%clk 0:01:23]}  Bxe5 {[%clk 0:00:43]} 30. Nxe6 {[%clk 0:01:23]}  Rxe6 {[%clk 0:00:43]} 31. Bb7 {[%clk 0:01:23]}  Rb8 {[%clk 0:00:40]} 32. Bd5 {[%clk 0:01:23]}  Re7 {[%clk 0:00:41]} 33. Rdf1 {[%clk 0:01:21]}  Rf8 {[%clk 0:00:33]} 34. g4 {[%clk 0:01:20]}  Kg7 {[%clk 0:00:33]} 35. Kg2 {[%clk 0:01:20]}  h6 {[%clk 0:00:30]} 36. h4 {[%clk 0:01:20]}  g5 {[%clk 0:00:30]} 37. b5 {[%clk 0:01:14]}  Bf4 {[%clk 0:00:28]} 38. hxg5 {[%clk 0:01:09]}  hxg5 {[%clk 0:00:28]} 39. Rc3 {[%clk 0:01:10]}  Rb8 {[%clk 0:00:24]} 40. Rb1 {[%clk 0:01:09]}  Rh8 {[%clk 0:00:21]} 41. Rh3 {[%clk 0:01:07]}  Rb8 {[%clk 0:00:21]} 42. Bc6 {[%clk 0:01:04]}  Re6 {[%clk 0:00:19]} 43. Rbh1 {[%clk 0:01:01]}  a6 {[%clk 0:00:14]} 44. Rh7+ {[%clk 0:00:57]}  Kf6 {[%clk 0:00:14]} 45. Bd5 {[%clk 0:00:57]}  Rxb5 {[%clk 0:00:08]} 46. Bxe6 {[%clk 0:00:56]}  fxe6 {[%clk 0:00:08]} 47. Ra1 {[%clk 0:00:47]}  a5 {[%clk 0:00:07]} 48. Ra2 {[%clk 0:00:41]}  Ke5 {[%clk 0:00:07]} 49. Ra7 {[%clk 0:00:38]}  Kxe4 {[%clk 0:00:06]} 50. Ra4+ {[%clk 0:00:37]}  Kd3 {[%clk 0:00:03]} 51. R7xa5 {[%clk 0:00:36]}  Rxa5 {[%clk 0:00:02]} 52. Rxa5 {[%clk 0:00:36]}  e5 {[%clk 0:00:03]} 53. Ra3+ {[%clk 0:00:36]}  Ke2 {[%clk 0:00:02]} 54. Ra2+ {[%clk 0:00:34]}  Kd3 {[%clk 0:00:02]} 55. Kf2 {[%clk 0:00:29]}  e4 {[%clk 0:00:03]} 56. Ra3+ {[%clk 0:00:28]}  Kd4 {[%clk 0:00:03]} 57. Ke2 {[%clk 0:00:28]}  e3 {[%clk 0:00:03]} 58. Ra4+ {[%clk 0:00:28]}  Kc3 {[%clk 0:00:03]} 59. Kf3 {[%clk 0:00:28]}  Kd2 {[%clk 0:00:03]} 60. Ra2+ {[%clk 0:00:27]}  Kd3 {[%clk 0:00:04]} 61. Re2 {[%clk 0:00:25]}  Kd4 {[%clk 0:00:04]} 62. Re1 {[%clk 0:00:25]}  Kd3 {[%clk 0:00:04]} 63. Rd1+ {[%clk 0:00:25]}  Kc2 {[%clk 0:00:04]} 64. Ke2 {[%clk 0:00:26]}  Kc3 {[%clk 0:00:05]} 65. Rd3+ {[%clk 0:00:26]}  Kc4 {[%clk 0:00:05]} 66. Ra3 {[%clk 0:00:24]}  Kb4 {[%clk 0:00:06]} 67. Ra8 {[%clk 0:00:24]}  Kc3 {[%clk 0:00:06]} 68. Re8 {[%clk 0:00:24]}  Kd4 {[%clk 0:00:07]} 69. Re7 {[%clk 0:00:23]}  Kd5 {[%clk 0:00:07]} 70. Kd3 {[%clk 0:00:23]}  Kc5 {[%clk 0:00:06]} 71. Ra7 {[%clk 0:00:18]}  Kd5 {[%clk 0:00:06]} 72. Ra5+ {[%clk 0:00:18]}  Kc6 {[%clk 0:00:07]} 73. Ra2 {[%clk 0:00:15]}  Kc5 {[%clk 0:00:07]} 74. Ke4 {[%clk 0:00:15]}  Kc4 {[%clk 0:00:08]} 75. Re2 {[%clk 0:00:15]}  Kc3 {[%clk 0:00:08]} 76. Rxe3+ {[%clk 0:00:13]}  Bxe3 {[%clk 0:00:06]} 77. Kxe3 {[%clk 0:00:14]}  Kc4 {[%clk 0:00:02]} 78. Ke4 {[%clk 0:00:15]}  Kc5 {[%clk 0:00:01]} 79. Kf5 {[%clk 0:00:15]}  Kd5 {[%clk 0:00:02]} 80. Kxg5 {[%clk 0:00:16]}  Ke6 {[%clk 0:00:03]} 81. Kh6 {[%clk 0:00:16]} 1-0


[Site "https://www.chess.com"]

[Event "Titled Tuesday Blitz April 18 Late 2023"]
[White "ElenGajger"]
[Black "Barrientos, Sergio E"]
[BlackFideId "4401824"]
[WhiteElo "2436"]
[BlackElo "2423"]
[Result "1-0"]
[Round "05"]
[TimeControl "180+2"]
[Date "2023.04.18"]
[WhiteClock "0:00:09"]
[BlackClock "0:01:19"]

1. e4 {[%clk 0:03:00]}  e5 {[%clk 0:02:59]} 2. d4 {[%clk 0:03:00]}  exd4 {[%clk 0:02:58]} 3. Nf3 {[%clk 0:03:01]}  Nf6 {[%clk 0:02:56]} 4. Bc4 {[%clk 0:03:00]}  Nc6 {[%clk 0:02:55]} 5. e5 {[%clk 0:03:00]}  d5 {[%clk 0:02:55]} 6. Bb5 {[%clk 0:03:01]}  Nd7 {[%clk 0:02:55]} 7. O-O {[%clk 0:02:58]}  Bc5 {[%clk 0:02:54]} 8. Nbd2 {[%clk 0:02:56]}  O-O {[%clk 0:02:53]} 9. Nb3 {[%clk 0:02:54]}  Bb6 {[%clk 0:02:53]} 10. Re1 {[%clk 0:02:51]}  Nc5 {[%clk 0:02:53]} 11. Nbxd4 {[%clk 0:02:35]}  Nxd4 {[%clk 0:02:53]} 12. Nxd4 {[%clk 0:02:35]}  Ne4 {[%clk 0:02:49]} 13. f3 {[%clk 0:02:17]}  Qh4 {[%clk 0:02:34]} 14. Be3 {[%clk 0:02:02]}  Ng5 {[%clk 0:02:34]} 15. Bf2 {[%clk 0:01:52]}  Qh5 {[%clk 0:02:32]} 16. Bd3 {[%clk 0:01:06]}  c5 {[%clk 0:02:24]} 17. Nf5 {[%clk 0:01:02]}  Nh3+ {[%clk 0:02:21]} 18. gxh3 {[%clk 0:00:58]}  Bxf5 {[%clk 0:02:22]} 19. Bxf5 {[%clk 0:00:57]}  Qxf5 {[%clk 0:02:23]} 20. Qxd5 {[%clk 0:00:57]}  Qxc2 {[%clk 0:02:18]} 21. Qxb7 {[%clk 0:00:39]}  Qxb2 {[%clk 0:02:14]} 22. Qe4 {[%clk 0:00:29]}  Rae8 {[%clk 0:02:12]} 23. f4 {[%clk 0:00:27]}  f6 {[%clk 0:02:01]} 24. e6 {[%clk 0:00:25]}  f5 {[%clk 0:01:59]} 25. Qc4 {[%clk 0:00:25]}  Rf6 {[%clk 0:01:54]} 26. Rab1 {[%clk 0:00:22]}  Rg6+ {[%clk 0:01:53]} 27. Kf1 {[%clk 0:00:21]}  Qa3 {[%clk 0:01:47]} 28. Rb3 {[%clk 0:00:20]}  Qxa2 {[%clk 0:01:36]} 29. e7+ {[%clk 0:00:17]}  Kh8 {[%clk 0:01:36]} 30. Qf7 {[%clk 0:00:17]}  Qa6+ {[%clk 0:01:23]} 31. Re2 {[%clk 0:00:15]}  h6 {[%clk 0:01:19]} 32. Qxe8+ {[%clk 0:00:10]}  Kh7 {[%clk 0:01:19]} 33. Qxg6+ {[%clk 0:00:11]}  Kxg6 {[%clk 0:01:20]} 34. e8=Q+ {[%clk 0:00:11]}  Kh7 {[%clk 0:01:21]} 35. Rg3 {[%clk 0:00:09]}  Qc4 {[%clk 0:01:19]} 36. Qg6+ {[%clk 0:00:09]} 1-0


[Site "https://www.chess.com"]

[Event "Titled Tuesday Blitz April 18 Late 2023"]
[White "Martinez Reyes, Pedro Ramon"]
[Black "Le Goff, Ronan"]
[WhiteFideId "3901807"]
[BlackFideId "612073"]
[WhiteElo "2340"]
[BlackElo "2275"]
[Result "0-1"]
[Round "05"]
[TimeControl "180+2"]
[Date "2023.04.18"]
[WhiteClock "0:00:42"]
[BlackClock "0:01:19"]

1. d3 {[%clk 0:02:59]}  d5 {[%clk 0:02:57]} 2. Nf3 {[%clk 0:03:00]}  Nf6 {[%clk 0:02:57]} 3. g3 {[%clk 0:02:59]}  Nc6 {[%clk 0:02:57]} 4. Bg2 {[%clk 0:03:00]}  e5 {[%clk 0:02:57]} 5. O-O {[%clk 0:03:01]}  Bc5 {[%clk 0:02:57]} 6. c4 {[%clk 0:03:01]}  dxc4 {[%clk 0:02:57]} 7. Qa4 {[%clk 0:03:01]}  O-O {[%clk 0:02:56]} 8. Qxc4 {[%clk 0:03:00]}  Bb6 {[%clk 0:02:56]} 9. Nc3 {[%clk 0:02:59]}  Be6 {[%clk 0:02:55]} 10. Qa4 {[%clk 0:02:59]}  h6 {[%clk 0:02:55]} 11. Bd2 {[%clk 0:02:55]}  Re8 {[%clk 0:02:54]} 12. Rfc1 {[%clk 0:02:55]}  Qd7 {[%clk 0:02:54]} 13. Qd1 {[%clk 0:02:55]}  Bh3 {[%clk 0:02:53]} 14. Na4 {[%clk 0:02:54]}  Bxg2 {[%clk 0:02:51]} 15. Kxg2 {[%clk 0:02:54]}  Nd4 {[%clk 0:02:46]} 16. Be3 {[%clk 0:02:37]}  Nxf3 {[%clk 0:02:40]} 17. exf3 {[%clk 0:02:37]}  Rad8 {[%clk 0:02:38]} 18. Nc5 {[%clk 0:02:33]}  Bxc5 {[%clk 0:02:36]} 19. Rxc5 {[%clk 0:02:34]}  b6 {[%clk 0:02:36]} 20. Rc4 {[%clk 0:02:20]}  c5 {[%clk 0:02:35]} 21. Rc3 {[%clk 0:02:13]}  Nd5 {[%clk 0:02:32]} 22. Ra3 {[%clk 0:02:13]}  Nb4 {[%clk 0:02:31]} 23. Qe2 {[%clk 0:02:09]}  a5 {[%clk 0:02:28]} 24. Rd1 {[%clk 0:02:06]}  Qd5 {[%clk 0:02:26]} 25. h4 {[%clk 0:02:01]}  Re6 {[%clk 0:02:25]} 26. Kh2 {[%clk 0:02:01]}  Rf6 {[%clk 0:02:25]} 27. f4 {[%clk 0:01:58]}  Re8 {[%clk 0:02:08]} 28. fxe5 {[%clk 0:01:47]}  Rxe5 {[%clk 0:02:09]} 29. Kg1 {[%clk 0:01:33]}  Rg6 {[%clk 0:01:50]} 30. Kh2 {[%clk 0:01:06]}  Nc6 {[%clk 0:01:50]} 31. Ra4 {[%clk 0:01:04]}  Nd4 {[%clk 0:01:45]} 32. Qf1 {[%clk 0:00:55]}  Nf3+ {[%clk 0:01:37]} 33. Kh3 {[%clk 0:00:55]}  Rh5 {[%clk 0:01:25]} 34. Re4 {[%clk 0:00:45]}  Qf5+ {[%clk 0:01:21]} 35. Kg2 {[%clk 0:00:42]}  Nxh4+ {[%clk 0:01:20]} 36. Kg1 {[%clk 0:00:42]}  Nf3+ {[%clk 0:01:19]} 37. Kg2 {[%clk 0:00:42]}  Rh2# {[%clk 0:01:19]} 0-1


[Site "https://www.chess.com"]

[Event "Titled Tuesday Blitz April 18 Late 2023"]
[White "Mazurkiewicz, Michal"]
[Black "Krishnan, Varun"]
[WhiteFideId "1124943"]
[BlackFideId "5054508"]
[WhiteElo "2054"]
[BlackElo "2605"]
[Result "1-0"]
[Round "05"]
[TimeControl "180+2"]
[Date "2023.04.18"]
[WhiteClock "0:00:27"]
[BlackClock "0:00:04"]

1. e4 {[%clk 0:03:00]}  e5 {[%clk 0:02:58]} 2. Nf3 {[%clk 0:03:00]}  Nc6 {[%clk 0:02:59]} 3. Bb5 {[%clk 0:03:00]}  a6 {[%clk 0:02:59]} 4. Bxc6 {[%clk 0:03:00]}  dxc6 {[%clk 0:03:00]} 5. O-O {[%clk 0:03:00]}  Bg4 {[%clk 0:02:59]} 6. h3 {[%clk 0:03:01]}  h5 {[%clk 0:02:59]} 7. d3 {[%clk 0:03:01]}  Qf6 {[%clk 0:02:59]} 8. Nbd2 {[%clk 0:03:01]}  Bd6 {[%clk 0:02:54]} 9. Re1 {[%clk 0:02:55]}  Ne7 {[%clk 0:02:54]} 10. d4 {[%clk 0:02:54]}  Ng6 {[%clk 0:02:45]} 11. hxg4 {[%clk 0:02:54]}  hxg4 {[%clk 0:02:43]} 12. Nh2 {[%clk 0:02:54]}  Rxh2 {[%clk 0:02:13]} 13. Qxg4 {[%clk 0:02:54]}  Rh4 {[%clk 0:01:21]} 14. Qg3 {[%clk 0:02:54]}  O-O-O {[%clk 0:00:50]} 15. Nf3 {[%clk 0:02:54]}  Rh7 {[%clk 0:00:50]} 16. Qg4+ {[%clk 0:01:28]}  Kb8 {[%clk 0:00:49]} 17. Bg5 {[%clk 0:01:27]}  Rdh8 {[%clk 0:00:39]} 18. g3 {[%clk 0:01:27]}  Qe6 {[%clk 0:00:28]} 19. Qxe6 {[%clk 0:01:27]}  fxe6 {[%clk 0:00:28]} 20. dxe5 {[%clk 0:01:26]}  Nxe5 {[%clk 0:00:29]} 21. Nxe5 {[%clk 0:01:26]}  Bxe5 {[%clk 0:00:30]} 22. c3 {[%clk 0:01:26]}  Rh1+ {[%clk 0:00:26]} 23. Kg2 {[%clk 0:01:26]}  R1h2+ {[%clk 0:00:27]} 24. Kg1 {[%clk 0:01:21]}  Rh1+ {[%clk 0:00:26]} 25. Kg2 {[%clk 0:01:21]}  R1h2+ {[%clk 0:00:27]} 26. Kg1 {[%clk 0:01:16]}  R2h5 {[%clk 0:00:27]} 27. Be3 {[%clk 0:01:14]}  g5 {[%clk 0:00:25]} 28. Kg2 {[%clk 0:01:12]}  Rh2+ {[%clk 0:00:22]} 29. Kf3 {[%clk 0:01:11]}  Bd6 {[%clk 0:00:18]} 30. Kg4 {[%clk 0:00:59]}  b5 {[%clk 0:00:17]} 31. a4 {[%clk 0:00:47]}  Kb7 {[%clk 0:00:15]} 32. axb5 {[%clk 0:00:47]}  cxb5 {[%clk 0:00:16]} 33. Red1 {[%clk 0:00:40]}  e5 {[%clk 0:00:09]} 34. b3 {[%clk 0:00:38]}  Kc6 {[%clk 0:00:03]} 35. c4 {[%clk 0:00:39]}  Kb7 {[%clk 0:00:03]} 36. c5 {[%clk 0:00:37]}  Be7 {[%clk 0:00:03]} 37. Rd7 {[%clk 0:00:33]}  R2h7 {[%clk 0:00:04]} 38. Rd5 {[%clk 0:00:27]}  Bf6 {[%clk 0:00:03]} 39. c6+ {[%clk 0:00:27]}  Kxc6 {[%clk 0:00:02]} 40. Rxa6+ {[%clk 0:00:27]}  Kb7 {[%clk 0:00:03]} 41. Rxf6 {[%clk 0:00:28]}  Ra8 {[%clk 0:00:01]} 42. Rxb5+ {[%clk 0:00:27]}  Kc8 {[%clk 0:00:02]} 43. Rf8+ {[%clk 0:00:28]}  Kd7 {[%clk 0:00:03]} 44. Rxa8 {[%clk 0:00:28]}  Kc6 {[%clk 0:00:03]} 45. Rxe5 {[%clk 0:00:28]}  Kb7 {[%clk 0:00:03]} 46. Raa5 {[%clk 0:00:26]}  c6 {[%clk 0:00:04]} 47. Ra7+ {[%clk 0:00:26]}  Kb8 {[%clk 0:00:04]} 48. Re8# {[%clk 0:00:27]} 1-0


[Site "https://www.chess.com"]

[Event "Titled Tuesday Blitz April 18 Late 2023"]
[White "Di Berardino, Diego Rafael"]
[Black "Kielinkei"]
[WhiteFideId "2105446"]
[WhiteElo "2432"]
[BlackElo "2428"]
[Result "1-0"]
[Round "05"]
[TimeControl "180+2"]
[Date "2023.04.18"]
[WhiteClock "0:01:26"]
[BlackClock "0:00:53"]

1. e4 {[%clk 0:03:00]}  c5 {[%clk 0:02:59]} 2. Nf3 {[%clk 0:02:58]}  g6 {[%clk 0:03:00]} 3. d4 {[%clk 0:02:56]}  cxd4 {[%clk 0:03:00]} 4. Nxd4 {[%clk 0:02:57]}  Bg7 {[%clk 0:02:59]} 5. c4 {[%clk 0:02:54]}  Nc6 {[%clk 0:02:59]} 6. Be3 {[%clk 0:02:53]}  Nf6 {[%clk 0:02:57]} 7. Nc3 {[%clk 0:02:53]}  Ng4 {[%clk 0:02:48]} 8. Qxg4 {[%clk 0:02:53]}  Nxd4 {[%clk 0:02:47]} 9. Qd1 {[%clk 0:02:54]}  Nc6 {[%clk 0:02:44]} 10. Rc1 {[%clk 0:02:49]}  d6 {[%clk 0:02:43]} 11. Qd2 {[%clk 0:02:48]}  O-O {[%clk 0:02:43]} 12. Be2 {[%clk 0:02:48]}  Bd7 {[%clk 0:02:34]} 13. O-O {[%clk 0:02:47]}  Qa5 {[%clk 0:02:34]} 14. Rfd1 {[%clk 0:02:40]}  Rac8 {[%clk 0:02:25]} 15. b3 {[%clk 0:02:40]}  Rfd8 {[%clk 0:02:06]} 16. f3 {[%clk 0:02:36]}  Bh8 {[%clk 0:01:49]} 17. Kh1 {[%clk 0:02:27]}  Bg7 {[%clk 0:01:49]} 18. Bg5 {[%clk 0:02:07]}  Re8 {[%clk 0:01:32]} 19. Bh4 {[%clk 0:01:57]}  Qh5 {[%clk 0:01:24]} 20. Bg5 {[%clk 0:01:48]}  h6 {[%clk 0:01:19]} 21. Be3 {[%clk 0:01:47]}  Red8 {[%clk 0:01:02]} 22. Nd5 {[%clk 0:01:43]}  Be8 {[%clk 0:00:53]} 23. f4 {[%clk 0:01:29]}  Qh4 {[%clk 0:00:53]} 24. Rf1 {[%clk 0:01:26]} 1-0


[Site "https://www.chess.com"]